fUSD/lending_fUSD_20260622
["ID","MTS","AMOUNT","RATE_DAILY","PERIOD"]
[426058343,1782131592000,-696.96,0.00032328,2]
[426058367,1782131592000,-500.0,0.00032328,2]
[426058370,1782131592000,-500.0,0.00032328,2]
[426058360,1782131592000,-816.43,0.00032328,2]
[426058339,1782131592000,-986.53,0.00032328,2]
[426058334,1782131592000,-384.70484574,0.00032328,2]
[426058336,1782131592000,-526.09,0.00032328,2]
[426058318,1782131592000,-500.0,0.00032328,2]
[426058319,1782131592000,-500.0,0.00032328,2]
[426058320,1782131592000,-501.26,0.00032328,2]
[426058321,1782131592000,-758.34,0.00032328,2]
[426058322,1782131592000,-500.0,0.00032328,2]
[426058325,1782131592000,-500.0,0.00032328,2]
[426058323,1782131592000,-940.86,0.00032328,2]
[426058324,1782131592000,-873.39,0.00032328,2]
[426058327,1782131592000,-1443.16,0.00032328,2]
[426058329,1782131592000,-3639.77,0.00032328,2]
[426058330,1782131592000,-1050.73,0.00032328,2]
[426058326,1782131592000,-784.71,0.00032328,2]
[426058328,1782131592000,-600.74,0.00032328,2]
[426058331,1782131592000,-636.07,0.00032328,2]
[426058333,1782131592000,-700.32,0.00032328,2]
[426058332,1782131592000,-510.38,0.00032328,2]
[426058372,1782131592000,-596.6,0.00032328,2]
[426058335,1782131592000,-945.27,0.00032328,2]
[426058337,1782131592000,-541.49,0.00032328,2]
[426058338,1782131592000,-590.33,0.00032328,2]
[426058345,1782131592000,-928.29,0.00032328,2]
[426058346,1782131592000,-568.63694507,0.00032328,2]
[426058347,1782131592000,-500.0,0.00032328,2]
[426058340,1782131592000,-1014.22,0.00032328,2]
[426058341,1782131592000,-694.68,0.00032328,2]
[426058344,1782131592000,-846.46,0.00032328,2]
[426058371,1782131592000,-500.0,0.00032328,2]
[426058355,1782131592000,-739.97,0.00032328,2]
[426058379,1782131592000,-733.03,0.00032328,2]
[426058405,1782131592000,-553.22,0.00032328,2]
[426058404,1782131592000,-1302.85,0.00032328,2]
[426058409,1782131592000,-784.56,0.00032328,2]
[426058411,1782131592000,-519.8,0.00032328,2]
[426058406,1782131592000,-636.95,0.00032328,2]
[426058407,1782131592000,-3549.98,0.00032328,2]
[426058408,1782131592000,-500.0,0.00032328,2]
[426058410,1782131592000,-1158.24,0.00032328,2]
[426058414,1782131592000,-1271.92,0.00032328,2]
[426058412,1782131592000,-567.35,0.00032328,2]
[426058413,1782131592000,-546.18,0.00032328,2]
[426058415,1782131592000,-1496.54,0.00032328,2]
[426058417,1782131592000,-3395.17,0.00032328,2]
[426058421,1782131592000,-711.86,0.00032328,2]
[426058418,1782131592000,-695.59,0.00032328,2]
[426058419,1782131592000,-1362.17,0.00032328,2]
[426058426,1782131592000,-4113.41,0.00032328,2]
[426058424,1782131592000,-4341.82,0.00032328,2]
[426058422,1782131592000,-504.85,0.00032328,2]
[426058423,1782131592000,-478.89371039,0.00032328,2]
[426058416,1782131592000,-229.77784171,0.00032328,2]
[426058425,1782131592000,-6186.73,0.00032328,2]
[426058428,1782131592000,-11028.8,0.00032328,2]
[426058427,1782131592000,-2940.44,0.00032328,2]
[426058377,1782131592000,-500.0,0.00032328,2]
[426058398,1782131592000,-830.91,0.00032328,2]
[426058399,1782131592000,-699.61,0.00032328,2]
[426058420,1782131592000,-1838.48,0.00032328,2]
[426058396,1782131592000,-626.49,0.00032328,2]
[426058378,1782131592000,-2693.07,0.00032328,2]
[426058397,1782131592000,-585.33,0.00032328,2]
[426058376,1782131592000,-542.05,0.00032328,2]
[426058373,1782131592000,-626.46,0.00032328,2]
[426058374,1782131592000,-305.43479159,0.00032328,2]
[426058375,1782131592000,-512.67,0.00032328,2]
[426058380,1782131592000,-566.57,0.00032328,2]
[426058381,1782131592000,-861.51,0.00032328,2]
[426058388,1782131592000,-500.0,0.00032328,2]
[426058384,1782131592000,-2103.48,0.00032328,2]
[426058390,1782131592000,-2746.21,0.00032328,2]
[426058391,1782131592000,-785.53,0.00032328,2]
[426058383,1782131592000,-593.89,0.00032328,2]
[426058382,1782131592000,-804.78,0.00032328,2]
[426058386,1782131592000,-378.43493677,0.00032328,2]
[426058394,1782131592000,-1706.4,0.00032328,2]
[426058403,1782131592000,-604.11,0.00032328,2]
[426058402,1782131592000,-500.0,0.00032328,2]
[426058395,1782131592000,-1155.68,0.00032328,2]
[426058400,1782131592000,-1326.5,0.00032328,2]
[426058401,1782131592000,-500.0,0.00032328,2]
[426058389,1782131592000,-554.28,0.00032328,2]
[426058385,1782131592000,-526.45,0.00032328,2]
[426058387,1782131592000,-301.98506928,0.00032328,2]
[426058392,1782131592000,-500.0,0.00032328,2]
[426058393,1782131592000,-698.47,0.00032328,2]
[426058469,1782131593000,-5625.93,0.00032328,2]
[426058465,1782131593000,-8639.58,0.00032328,2]
[426058466,1782131593000,-4376.06,0.00032328,2]
[426058471,1782131593000,-775.18,0.00032328,2]
[426058467,1782131593000,-8686.62,0.00032328,2]
[426058463,1782131593000,-500.0,0.00032328,2]
[426058468,1782131593000,-919.77,0.00032328,2]
[426058458,1782131593000,-500.0,0.00032328,2]
[426058459,1782131593000,-9672.86,0.00032328,2]
[426058456,1782131593000,-6597.51,0.00032328,2]
[426058470,1782131593000,-500.0,0.00032328,2]
[426058464,1782131593000,-1002.58,0.00032328,2]
[426058474,1782131593000,-1087.5,0.00032328,2]
[426058483,1782131593000,-513.61,0.00032328,2]
[426058473,1782131593000,-500.0,0.00032328,2]
[426058478,1782131593000,-2905.9,0.00032328,2]
[426058476,1782131593000,-500.0,0.00032328,2]
[426058477,1782131593000,-729.92,0.00032328,2]
[426058475,1782131593000,-912.76,0.00032328,2]
[426058485,1782131593000,-781.2,0.00032328,2]
[426058480,1782131593000,-4175.97,0.00032328,2]
[426058481,1782131593000,-500.0,0.00032328,2]
[426058484,1782131593000,-895.47,0.00032328,2]
[426058479,1782131593000,-2044.4,0.00032328,2]
[426058482,1782131593000,-500.0,0.00032328,2]
[426058486,1782131593000,-554.0,0.00032328,2]
[426058460,1782131593000,-658.07,0.00032328,2]
[426058472,1782131593000,-844.33,0.00032328,2]
[426058488,1782131593000,-1281.85,0.00032328,2]
[426058431,1782131593000,-847.85,0.00032328,2]
[426058454,1782131593000,-1169.7,0.00032328,2]
[426058432,1782131593000,-1204.89,0.00032328,2]
[426058434,1782131593000,-500.0,0.00032328,2]
[426058433,1782131593000,-849.12,0.00032328,2]
[426058429,1782131593000,-616.23,0.00032328,2]
[426058437,1782131593000,-500.0,0.00032328,2]
[426058430,1782131593000,-5138.93,0.00032328,2]
[426058435,1782131593000,-8197.77,0.00032328,2]
[426058436,1782131593000,-2000.0,0.00032328,2]
[426058438,1782131593000,-3373.56,0.00032328,2]
[426058448,1782131593000,-7121.05,0.00032328,2]
[426058440,1782131593000,-570.0,0.00032328,2]
[426058444,1782131593000,-1010.5,0.00032328,2]
[426058450,1782131593000,-657.57,0.00032328,2]
[426058445,1782131593000,-500.0,0.00032328,2]
[426058442,1782131593000,-685.72,0.00032328,2]
[426058441,1782131593000,-713.2,0.00032328,2]
[426058449,1782131593000,-500.0,0.00032328,2]
[426058439,1782131593000,-687.7,0.00032328,2]
[426058447,1782131593000,-1413.15,0.00032328,2]
[426058443,1782131593000,-557.86,0.00032328,2]
[426058446,1782131593000,-591.59,0.00032328,2]
[426058452,1782131593000,-4227.56,0.00032328,2]
[426058462,1782131593000,-500.0,0.00032328,2]
[426058451,1782131593000,-500.0,0.00032328,2]
[426058453,1782131593000,-6843.28,0.00032328,2]
[426058457,1782131593000,-7004.08,0.00032328,2]
[426058455,1782131593000,-4492.09,0.00032328,2]
[426058461,1782131593000,-909.43,0.00032328,2]
[426058487,1782131593000,-500.0,0.00032328,2]
[426058517,1782131593000,-800.0,0.000325,2]
[426058494,1782131593000,-948.85,0.00032328,2]
[426058534,1782131593000,-1724.88,0.00032602,2]
[426058532,1782131593000,-513.94,0.00032602,2]
[426058524,1782131593000,-181.39457998,0.00032518,2]
[426058530,1782131593000,-970.83,0.00032602,2]
[426058531,1782131593000,-633.7,0.00032602,2]
[426058533,1782131593000,-947.67,0.00032602,2]
[426058535,1782131593000,-539.78,0.00032602,2]
[426058523,1782131593000,-1653.7,0.00032511,30]
[426058525,1782131593000,-150.0,0.00032562,2]
[426058527,1782131593000,-1500.0,0.000326,2]
[426058528,1782131593000,-585.84,0.00032602,2]
[426058526,1782131593000,-785.0,0.00032571,2]
[426058529,1782131593000,-680.9,0.00032602,2]
[426058538,1782131593000,-2673.46,0.00032602,2]
[426058536,1782131593000,-1276.25,0.00032602,2]
[426058540,1782131593000,-695.0,0.00032602,2]
[426058539,1782131593000,-755.16,0.00032602,2]
[426058546,1782131593000,-739.37,0.00032602,2]
[426058544,1782131593000,-500.0,0.00032602,2]
[426058537,1782131593000,-666.68,0.00032602,2]
[426058545,1782131593000,-661.35,0.00032602,2]
[426058543,1782131593000,-1180.24,0.00032602,2]
[426058548,1782131593000,-339.04020278,0.00032602,2]
[426058542,1782131593000,-557.46,0.00032602,2]
[426058547,1782131593000,-983.84,0.00032602,2]
[426058549,1782131593000,-500.0,0.00032602,2]
[426058493,1782131593000,-1013.21,0.00032328,2]
[426058522,1782131593000,-10040.92604101,0.000325,2]
[426058520,1782131593000,-1500.0,0.000325,2]
[426058541,1782131593000,-500.51,0.00032602,2]
[426058514,1782131593000,-800.0,0.000325,2]
[426058521,1782131593000,-600.0,0.000325,120]
[426058490,1782131593000,-537.51,0.00032328,2]
[426058489,1782131593000,-777.53,0.00032328,2]
[426058495,1782131593000,-984.2,0.00032328,2]
[426058497,1782131593000,-10000.0,0.00032333,2]
[426058492,1782131593000,-879.74,0.00032328,2]
[426058496,1782131593000,-500.0,0.00032328,2]
[426058499,1782131593000,-251.0,0.0003234,2]
[426058510,1782131593000,-501.0,0.00032483,7]
[426058509,1782131593000,-150.0,0.00032345,2]
[426058498,1782131593000,-251.0,0.0003234,2]
[426058501,1782131593000,-213.6883865,0.00032344,14]
[426058500,1782131593000,-251.0,0.0003234,2]
[426058491,1782131593000,-805.85,0.00032328,2]
[426058502,1782131593000,-211.23710555,0.00032344,14]
[426058518,1782131593000,-800.0,0.000325,2]
[426058503,1782131593000,-150.0,0.00032345,2]
[426058512,1782131593000,-800.0,0.000325,2]
[426058516,1782131593000,-800.0,0.000325,2]
[426058519,1782131593000,-800.0,0.000325,2]
[426058513,1782131593000,-776.87148297,0.000325,2]
[426058515,1782131593000,-800.0,0.000325,2]
[426058506,1782131593000,-150.0,0.00032345,2]
[426058507,1782131593000,-150.0,0.00032345,2]
[426058508,1782131593000,-150.0,0.00032345,2]
[426058505,1782131593000,-150.0,0.00032345,2]
[426058504,1782131593000,-150.0,0.00032345,2]
[426058511,1782131593000,-800.0,0.000325,2]
[426058583,1782131594000,-856.58,0.00032602,2]
[426058578,1782131594000,-531.43,0.00032602,2]
[426058570,1782131594000,-1181.38,0.00032602,2]
[426058573,1782131594000,-691.46,0.00032602,2]
[426058572,1782131594000,-284.42,0.00032602,2]
[426058574,1782131594000,-725.12,0.00032602,2]
[426058576,1782131594000,-500.0,0.00032602,2]
[426058577,1782131594000,-703.04,0.00032602,2]
[426058584,1782131594000,-850.25,0.00032602,2]
[426058581,1782131594000,-944.23,0.00032602,2]
[426058580,1782131594000,-1040.83,0.00032602,2]
[426058582,1782131594000,-500.0,0.00032602,2]
[426058579,1782131594000,-617.49,0.00032602,2]
[426058587,1782131594000,-523.74,0.00032602,2]
[426058571,1782131594000,-548.72,0.00032602,2]
[426058585,1782131594000,-584.59,0.00032602,2]
[426058575,1782131594000,-1255.65,0.00032602,2]
[426058568,1782131594000,-501.54,0.00032602,2]
[426058552,1782131594000,-586.89,0.00032602,2]
[426058566,1782131594000,-528.44,0.00032602,2]
[426058586,1782131594000,-608.59,0.00032602,2]
[426058550,1782131594000,-714.12,0.00032602,2]
[426058560,1782131594000,-688.82,0.00032602,2]
[426058551,1782131594000,-511.5,0.00032602,2]
[426058553,1782131594000,-155.53636744,0.00032602,2]
[426058555,1782131594000,-605.25610495,0.00032602,2]
[426058554,1782131594000,-614.75,0.00032602,2]
[426058559,1782131594000,-500.0,0.00032602,2]
[426058556,1782131594000,-1404.94,0.00032602,2]
[426058557,1782131594000,-1137.32,0.00032602,2]
[426058558,1782131594000,-500.0,0.00032602,2]
[426058569,1782131594000,-593.04,0.00032602,2]
[426058561,1782131594000,-515.21,0.00032602,2]
[426058562,1782131594000,-562.32,0.00032602,2]
[426058563,1782131594000,-500.0,0.00032602,2]
[426058564,1782131594000,-807.35,0.00032602,2]
[426058565,1782131594000,-721.3,0.00032602,2]
[426058567,1782131594000,-678.94,0.00032602,2]
[426058590,1782131594000,-936.99,0.00032602,2]
[426058589,1782131594000,-1501.08,0.00032602,2]
[426058588,1782131594000,-500.0,0.00032602,2]
[426058614,1782131594000,-947.18,0.00032602,2]
[426058610,1782131594000,-636.73,0.00032602,2]
[426058609,1782131594000,-715.39,0.00032602,2]
[426058623,1782131594000,-788.02,0.00032602,2]
[426058629,1782131594000,-4029.46,0.00032602,2]
[426058622,1782131594000,-521.74,0.00032602,2]
[426058620,1782131594000,-1069.93,0.00032602,2]
[426058617,1782131594000,-500.0,0.00032602,2]
[426058628,1782131594000,-500.0,0.00032602,2]
[426058615,1782131594000,-500.0,0.00032602,2]
[426058618,1782131594000,-1250.12,0.00032602,2]
[426058613,1782131594000,-617.25,0.00032602,2]
[426058626,1782131594000,-3364.63,0.00032602,2]
[426058624,1782131594000,-740.41,0.00032602,2]
[426058619,1782131594000,-577.94,0.00032602,2]
[426058621,1782131594000,-858.12,0.00032602,2]
[426058591,1782131594000,-1046.3,0.00032602,2]
[426058611,1782131594000,-702.96,0.00032602,2]
[426058612,1782131594000,-992.54,0.00032602,2]
[426058625,1782131594000,-689.12,0.00032602,2]
[426058616,1782131594000,-524.23,0.00032602,2]
[426058592,1782131594000,-786.59,0.00032602,2]
[426058627,1782131594000,-879.63,0.00032602,2]
[426058595,1782131594000,-554.01,0.00032602,2]
[426058596,1782131594000,-718.0,0.00032602,2]
[426058593,1782131594000,-670.91,0.00032602,2]
[426058597,1782131594000,-500.0,0.00032602,2]
[426058599,1782131594000,-790.07,0.00032602,2]
[426058598,1782131594000,-666.78,0.00032602,2]
[426058594,1782131594000,-540.55,0.00032602,2]
[426058600,1782131594000,-504.09,0.00032602,2]
[426058607,1782131594000,-500.0,0.00032602,2]
[426058602,1782131594000,-790.49,0.00032602,2]
[426058601,1782131594000,-834.64,0.00032602,2]
[426058606,1782131594000,-900.89,0.00032602,2]
[426058605,1782131594000,-564.32,0.00032602,2]
[426058608,1782131594000,-500.0,0.00032602,2]
[426058604,1782131594000,-853.2,0.00032602,2]
[426058603,1782131594000,-510.33,0.00032602,2]
[426058665,1782131595000,-562.61,0.00032602,2]
[426058669,1782131595000,-739.97,0.00032602,2]
[426058671,1782131595000,-500.0,0.00032602,2]
[426058670,1782131595000,-3267.88,0.00032602,2]
[426058657,1782131595000,-500.0,0.00032602,2]
[426058662,1782131595000,-571.32,0.00032602,2]
[426058658,1782131595000,-696.96,0.00032602,2]
[426058666,1782131595000,-739.97,0.00032602,2]
[426058660,1782131595000,-928.29,0.00032602,2]
[426058661,1782131595000,-500.0,0.00032602,2]
[426058663,1782131595000,-500.0,0.00032602,2]
[426058680,1782131595000,-806.98,0.00032602,2]
[426058667,1782131595000,-559.62,0.00032602,2]
[426058672,1782131595000,-500.0,0.00032602,2]
[426058675,1782131595000,-558.4,0.00032602,2]
[426058674,1782131595000,-816.43,0.00032602,2]
[426058677,1782131595000,-1352.1,0.00032602,2]
[426058681,1782131595000,-500.0,0.00032602,2]
[426058676,1782131595000,-827.96,0.00032602,2]
[426058679,1782131595000,-1075.88,0.00032602,2]
[426058673,1782131595000,-905.07,0.00032602,2]
[426058678,1782131595000,-1369.37,0.00032602,2]
[426058659,1782131595000,-846.46,0.00032602,2]
[426058664,1782131595000,-700.09,0.00032602,2]
[426058656,1782131595000,-694.68,0.00032602,2]
[426058636,1782131595000,-501.26,0.00032602,2]
[426058654,1782131595000,-986.53,0.00032602,2]
[426058682,1782131595000,-3183.96,0.00032602,2]
[426058630,1782131595000,-500.0,0.00032602,2]
[426058632,1782131595000,-869.96,0.00032602,2]
[426058634,1782131595000,-500.0,0.00032602,2]
[426058635,1782131595000,-500.0,0.00032602,2]
[426058633,1782131595000,-635.95,0.00032602,2]
[426058631,1782131595000,-739.67,0.00032602,2]
[426058639,1782131595000,-940.86,0.00032602,2]
[426058637,1782131595000,-758.34,0.00032602,2]
[426058638,1782131595000,-500.0,0.00032602,2]
[426058640,1782131595000,-873.39,0.00032602,2]
[426058655,1782131595000,-1014.22,0.00032602,2]
[426058643,1782131595000,-1443.16,0.00032602,2]
[426058642,1782131595000,-784.71,0.00032602,2]
[426058641,1782131595000,-500.0,0.00032602,2]
[426058647,1782131595000,-636.07,0.00032602,2]
[426058650,1782131595000,-945.27,0.00032602,2]
[426058649,1782131595000,-700.32,0.00032602,2]
[426058648,1782131595000,-510.38,0.00032602,2]
[426058645,1782131595000,-3639.77,0.00032602,2]
[426058646,1782131595000,-1050.73,0.00032602,2]
[426058652,1782131595000,-541.49,0.00032602,2]
[426058651,1782131595000,-526.09,0.00032602,2]
[426058653,1782131595000,-590.33,0.00032602,2]
[426058644,1782131595000,-600.74,0.00032602,2]
[426058685,1782131595000,-500.0,0.00032602,2]
[426058668,1782131595000,-500.0,0.00032602,2]
[426058683,1782131595000,-519.81,0.00032602,2]
[426058712,1782131595000,-500.0,0.00032602,2]
[426058714,1782131595000,-1302.85,0.00032602,2]
[426058716,1782131595000,-636.95,0.00032602,2]
[426058719,1782131595000,-784.56,0.00032602,2]
[426058721,1782131595000,-519.8,0.00032602,2]
[426058720,1782131595000,-1158.24,0.00032602,2]
[426058718,1782131595000,-500.0,0.00032602,2]
[426058727,1782131595000,-695.59,0.00032602,2]
[426058717,1782131595000,-3549.98,0.00032602,2]
[426058722,1782131595000,-567.35,0.00032602,2]
[426058724,1782131595000,-1271.92,0.00032602,2]
[426058708,1782131595000,-830.91,0.00032602,2]
[426058726,1782131595000,-3395.17,0.00032602,2]
[426058725,1782131595000,-1496.54,0.00032602,2]
[426058729,1782131595000,-1838.48,0.00032602,2]
[426058728,1782131595000,-1362.17,0.00032602,2]
[426058730,1782131595000,-711.86,0.00032602,2]
[426058731,1782131595000,-504.85,0.00032602,2]
[426058732,1782131595000,-4341.82,0.00032602,2]
[426058735,1782131595000,-2940.44,0.00032602,2]
[426058734,1782131595000,-4113.41,0.00032602,2]
[426058736,1782131595000,-11028.8,0.00032602,2]
[426058733,1782131595000,-6186.73,0.00032602,2]
[426058737,1782131595000,-616.23,0.00032602,2]
[426058723,1782131595000,-546.18,0.00032602,2]
[426058705,1782131595000,-1155.68,0.00032602,2]
[426058684,1782131595000,-500.0,0.00032602,2]
[426058709,1782131595000,-699.61,0.00032602,2]
[426058711,1782131595000,-500.0,0.00032602,2]
[426058687,1782131595000,-626.46,0.00032602,2]
[426058689,1782131595000,-542.05,0.00032602,2]
[426058688,1782131595000,-512.67,0.00032602,2]
[426058691,1782131595000,-2693.07,0.00032602,2]
[426058686,1782131595000,-596.6,0.00032602,2]
[426058690,1782131595000,-500.0,0.00032602,2]
[426058692,1782131595000,-733.03,0.00032602,2]
[426058693,1782131595000,-566.57,0.00032602,2]
[426058697,1782131595000,-2103.48,0.00032602,2]
[426058699,1782131595000,-554.28,0.00032602,2]
[426058702,1782131595000,-500.0,0.00032602,2]
[426058694,1782131595000,-861.51,0.00032602,2]
[426058703,1782131595000,-698.47,0.00032602,2]
[426058700,1782131595000,-2746.21,0.00032602,2]
[426058713,1782131595000,-604.11,0.00032602,2]
[426058715,1782131595000,-553.22,0.00032602,2]
[426058707,1782131595000,-585.33,0.00032602,2]
[426058706,1782131595000,-626.49,0.00032602,2]
[426058710,1782131595000,-1326.5,0.00032602,2]
[426058704,1782131595000,-1706.4,0.00032602,2]
[426058698,1782131595000,-500.0,0.00032602,2]
[426058738,1782131595000,-5138.93,0.00032602,2]
[426058696,1782131595000,-593.89,0.00032602,2]
[426058695,1782131595000,-804.78,0.00032602,2]
[426058701,1782131595000,-785.53,0.00032602,2]
[426058777,1782131596000,-5625.93,0.00032602,2]
[426058780,1782131596000,-844.33,0.00032602,2]
[426058779,1782131596000,-775.18,0.00032602,2]
[426058773,1782131596000,-8639.58,0.00032602,2]
[426058772,1782131596000,-1002.58,0.00032602,2]
[426058771,1782131596000,-500.0,0.00032602,2]
[426058775,1782131596000,-8686.62,0.00032602,2]
[426058776,1782131596000,-919.77,0.00032602,2]
[426058774,1782131596000,-4376.06,0.00032602,2]
[426058782,1782131596000,-1087.5,0.00032602,2]
[426058770,1782131596000,-500.0,0.00032602,2]
[426058781,1782131596000,-500.0,0.00032602,2]
[426058796,1782131596000,-1281.85,0.00032602,2]
[426058784,1782131596000,-500.0,0.00032602,2]
[426058778,1782131596000,-327.3,0.00032602,2]
[426058788,1782131596000,-4175.97,0.00032602,2]
[426058789,1782131596000,-396.92847095,0.00032602,2]
[426058787,1782131596000,-2044.4,0.00032602,2]
[426058785,1782131596000,-729.92,0.00032602,2]
[426058786,1782131596000,-2905.9,0.00032602,2]
[426058791,1782131596000,-513.61,0.00032602,2]
[426058801,1782131596000,-1013.21,0.00032602,2]
[426058802,1782131596000,-948.85,0.00032602,2]
[426058790,1782131596000,-500.0,0.00032602,2]
[426058767,1782131596000,-9672.86,0.00032602,2]
[426058794,1782131596000,-554.0,0.00032602,2]
[426058783,1782131596000,-912.76,0.00032602,2]
[426058768,1782131596000,-658.07,0.00032602,2]
[426058754,1782131596000,-591.59,0.00032602,2]
[426058766,1782131596000,-500.0,0.00032602,2]
[426058739,1782131596000,-847.85,0.00032602,2]
[426058740,1782131596000,-1204.89,0.00032602,2]
[426058792,1782131596000,-895.47,0.00032602,2]
[426058743,1782131596000,-2000.0,0.00032602,2]
[426058746,1782131596000,-3373.56,0.00032602,2]
[426058748,1782131596000,-570.0,0.00032602,2]
[426058742,1782131596000,-500.0,0.00032602,2]
[426058745,1782131596000,-205.32,0.00032602,2]
[426058741,1782131596000,-849.12,0.00032602,2]
[426058747,1782131596000,-687.7,0.00032602,2]
[426058753,1782131596000,-500.0,0.00032602,2]
[426058751,1782131596000,-557.86,0.00032602,2]
[426058769,1782131596000,-909.43,0.00032602,2]
[426058750,1782131596000,-685.72,0.00032602,2]
[426058752,1782131596000,-1010.5,0.00032602,2]
[426058755,1782131596000,-1413.15,0.00032602,2]
[426058765,1782131596000,-7004.08,0.00032602,2]
[426058756,1782131596000,-7121.05,0.00032602,2]
[426058758,1782131596000,-657.57,0.00032602,2]
[426058761,1782131596000,-6843.28,0.00032602,2]
[426058759,1782131596000,-500.0,0.00032602,2]
[426058760,1782131596000,-4227.56,0.00032602,2]
[426058757,1782131596000,-500.0,0.00032602,2]
[426058762,1782131596000,-1169.7,0.00032602,2]
[426058763,1782131596000,-4492.09,0.00032602,2]
[426058764,1782131596000,-6597.51,0.00032602,2]
[426058749,1782131596000,-713.2,0.00032602,2]
[426058744,1782131596000,-8197.77,0.00032602,2]
[426058793,1782131596000,-781.2,0.00032602,2]
[426058797,1782131596000,-777.53,0.00032602,2]
[426058827,1782131596000,-644.33,0.00032819,2]
[426058833,1782131596000,-185.21,0.00032819,2]
[426058831,1782131596000,-151.0,0.00032819,2]
[426058832,1782131596000,-644.33,0.00032819,2]
[426058836,1782131596000,-576.34,0.0003282,2]
[426058835,1782131596000,-573.66,0.0003282,2]
[426058838,1782131596000,-185.21,0.00032824,2]
[426058837,1782131596000,-396.29,0.00032824,2]
[426058840,1782131596000,-484.94,0.00032824,2]
[426058839,1782131596000,-644.33,0.00032824,2]
[426058841,1782131596000,-749.0,0.00032858,2]
[426058847,1782131596000,-644.9715942,0.00032873,2]
[426058846,1782131596000,-203.0,0.0003286,30]
[426058842,1782131596000,-749.0,0.00032858,2]
[426058844,1782131596000,-749.0,0.00032858,2]
[426058845,1782131596000,-1387.0,0.00032858,2]
[426058843,1782131596000,-749.0,0.00032858,2]
[426058848,1782131596000,-585.84,0.00032876,2]
[426058850,1782131596000,-970.83,0.00032876,2]
[426058849,1782131596000,-680.9,0.00032876,2]
[426058854,1782131596000,-1724.88,0.00032876,2]
[426058852,1782131596000,-513.94,0.00032876,2]
[426058856,1782131596000,-1276.25,0.00032876,2]
[426058855,1782131596000,-539.78,0.00032876,2]
[426058851,1782131596000,-633.7,0.00032876,2]
[426058795,1782131596000,-515.39632909,0.00032602,2]
[426058853,1782131596000,-947.67,0.00032876,2]
[426058834,1782131596000,-573.69,0.00032819,2]
[426058828,1782131596000,-151.0,0.00032819,2]
[426058857,1782131596000,-666.68,0.00032876,2]
[426058829,1782131596000,-645.49,0.00032819,2]
[426058830,1782131596000,-151.0,0.00032819,2]
[426058798,1782131596000,-537.51,0.00032602,2]
[426058800,1782131596000,-879.74,0.00032602,2]
[426058803,1782131596000,-984.2,0.00032602,2]
[426058805,1782131596000,-175.9122336,0.00032609,7]
[426058808,1782131596000,-8299.42,0.00032667,2]
[426058807,1782131596000,-228.55605509,0.00032648,120]
[426058806,1782131596000,-190.28,0.00032635,5]